fUST/lending_fUST_20250718
["ID","MTS","AMOUNT","RATE_DAILY","PERIOD"]
[373041076,1752845368818,-460.0,0.00016793,2]
[373041077,1752845368843,-606.5,0.00016793,2]
[373041078,1752845368868,-2692.46,0.00016793,2]
[373041079,1752845368894,-681.38,0.00016793,2]
[373041080,1752845368917,-1477.31,0.00016793,2]
[373041081,1752845369042,-460.0,0.00016794,2]
[373041082,1752845369064,-460.0,0.00016794,2]
[373041083,1752845369086,-460.0,0.00016794,2]
[373041084,1752845369108,-460.0,0.00016794,2]
[373041085,1752845369133,-460.0,0.00016794,2]
[373041086,1752845369157,-460.0,0.00016794,2]
[373041087,1752845369179,-460.0,0.00016794,2]
[373041088,1752845369201,-460.0,0.00016794,2]
[373041089,1752845369224,-460.0,0.00016794,2]
[373041090,1752845369247,-460.0,0.00016794,2]
[373041091,1752845369269,-460.0,0.00016794,2]
[373041092,1752845369291,-206.43665624,0.00016794,2]
[373041093,1752845369315,-460.0,0.00016794,2]
[373041094,1752845369336,-427.53365463,0.00016794,2]
[373041095,1752845369359,-460.0,0.00016794,2]
[373041096,1752845369380,-460.0,0.00016794,2]
[373041097,1752845369404,-460.0,0.00016794,2]
[373041098,1752845369428,-460.0,0.00016794,2]
[373041099,1752845369450,-460.0,0.00016794,2]
[373041100,1752845369474,-460.0,0.00016794,2]
[373041101,1752845369497,-460.0,0.00016794,2]
[373041102,1752845369519,-460.0,0.00016794,2]
[373041103,1752845369542,-460.0,0.00016794,2]
[373041104,1752845369566,-460.0,0.00016794,2]
[373041105,1752845369589,-460.0,0.00016794,2]
[373041106,1752845369613,-460.0,0.00016794,2]
[373041107,1752845369641,-2294.32,0.00016794,2]
[373041108,1752845369665,-460.0,0.00016794,2]
[373041109,1752845369689,-460.0,0.00016794,2]
[373041110,1752845369714,-1276.13,0.00016794,2]
[373041111,1752845369737,-460.0,0.00016794,2]
[373041112,1752845369760,-3019.79,0.00016794,2]
[373041113,1752845369784,-460.0,0.00016794,2]
[373041114,1752845369807,-473.06837555,0.00016794,2]
[373041115,1752845369832,-892.99,0.00016794,2]
[373041116,1752845369855,-460.0,0.00016795,2]
[373041117,1752845369877,-460.0,0.00016795,2]
[373041118,1752845369901,-427.89599013,0.00016795,2]
[373041119,1752845369923,-420.31297401,0.00016795,2]
[373041120,1752845369946,-494.88075402,0.00016795,2]
[373041121,1752845369968,-460.0,0.00016795,2]
[373041122,1752845369990,-460.0,0.00016795,2]
[373041123,1752845370012,-460.0,0.00016795,2]
[373041124,1752845370034,-270.75835173,0.00016795,2]
[373041128,1752845414310,186.306164,0.00015854,2]
[373041149,1752845432771,-460.0,0.00016672,2]
[373041150,1752845432781,-500.0,0.00016673,2]
[373041151,1752845432790,-500.0,0.00016673,2]
[373041152,1752845432800,-500.0,0.00016673,2]
[373041153,1752845432812,-500.0,0.00016673,2]
[373041154,1752845432820,-500.0,0.00016673,2]
[373041155,1752845432830,-460.0,0.00016691,2]
[373041156,1752845432839,-460.0,0.00016691,2]
[373041158,1752845432848,-460.0,0.00016694,2]
[373041159,1752845432858,-207.80171711,0.00016694,2]
[373041175,1752845433087,-252.19828289,0.00016694,2]
[373041177,1752845433098,-1200.0,0.00016694,2]
[373041179,1752845433108,-179.0,0.00016694,2]
[373041181,1752845433119,-229.0,0.00016694,2]
[373041183,1752845433128,-460.0,0.00016694,2]
[373041184,1752845433138,-460.0,0.00016695,2]
[373041185,1752845433147,-460.0,0.00016695,2]
[373041186,1752845433157,-460.0,0.00016695,2]
[373041187,1752845433167,-460.0,0.00016695,2]
[373041188,1752845433177,-460.0,0.00016695,2]
[373041189,1752845433187,-300.0,0.00016695,2]
[373041190,1752845433199,-300.0,0.00016695,2]
[373041191,1752845433209,-300.0,0.00016695,2]
[373041192,1752845433220,-460.0,0.00016695,2]
[373041193,1752845433229,-460.0,0.00016695,2]
[373041194,1752845433240,-460.0,0.00016695,2]
[373041195,1752845433250,-463.3970163,0.00016696,2]
[373041196,1752845433260,-460.0,0.00016696,2]
[373041197,1752845433270,-360.45748295,0.00016696,2]
[373041198,1752845433283,-99.54251705,0.00016696,2]
[373041199,1752845433293,-164.55,0.00016696,2]
[373041200,1752845433303,-460.0,0.00016793,2]
[373041201,1752845433314,-2198.72,0.00016793,2]
[373041202,1752845433324,-152.87089882,0.00016793,2]
[373041203,1752845433334,-189.24164827,0.00016795,2]
[373041204,1752845433344,-465.97462816,0.00016816,2]
[373041205,1752845433354,-460.0,0.00016946,2]
[373041206,1752845433363,-460.0,0.00016946,2]
[373041207,1752845433373,-460.0,0.00016946,2]
[373041208,1752845433382,-460.0,0.00016946,2]
[373041209,1752845433392,-1075.48,0.00016946,2]
[373041210,1752845433402,-460.0,0.00016946,2]
[373041211,1752845433412,-460.0,0.00016965,2]
[373041212,1752845433422,-2259.36,0.00016968,2]
[373041213,1752845433432,-2968.7,0.00016968,2]
[373041214,1752845433442,-460.0,0.00016968,2]
[373041215,1752845433452,-460.0,0.00016968,2]
[373041216,1752845433462,-460.0,0.00016968,2]
[373041217,1752845433471,-460.0,0.00016968,2]
[373041218,1752845433481,-460.0,0.00016968,2]
[373041219,1752845433490,-1666.35,0.00016968,2]
[373041220,1752845433500,-460.0,0.00016968,2]
[373041221,1752845433510,-2650.76181572,0.00016968,2]
[373041222,1752845433520,-1468.03,0.00016968,2]
[373041223,1752845433531,-460.0,0.00016968,2]
[373041224,1752845433541,-1349.75,0.00016968,2]
[373041225,1752845433551,-460.0,0.00016968,2]
[373041226,1752845433561,-460.0,0.00016968,2]
[373041227,1752845433571,-460.0,0.00016968,2]
[373041228,1752845433580,-469.75,0.00016968,2]
[373041229,1752845433590,-460.0,0.00016969,2]
[373041230,1752845433600,-460.0,0.00016969,2]
[373041231,1752845433610,-460.0,0.00016969,2]
[373041232,1752845433619,-460.0,0.00016969,2]
[373041233,1752845433632,-460.0,0.00016969,2]
[373041234,1752845433652,-460.0,0.00016969,2]
[373041235,1752845433665,-460.0,0.00016969,2]
[373041236,1752845433677,-460.0,0.00016969,2]
[373041237,1752845433687,-460.0,0.00016969,2]
[373041238,1752845433701,-460.0,0.00016969,2]
[373041239,1752845433715,-460.0,0.00016969,2]
[373041240,1752845433726,-460.0,0.00016969,2]
[373041241,1752845433737,-460.0,0.00016969,2]
[373041242,1752845433748,-571.54331668,0.00016969,2]
[373041243,1752845433759,-460.0,0.00016969,2]
[373041244,1752845433770,-460.0,0.00016969,2]
[373041245,1752845433780,-460.0,0.00016969,2]
[373041246,1752845433791,-460.0,0.00016969,2]
[373041247,1752845433802,-460.0,0.00016969,2]
[373041248,1752845433812,-460.0,0.00016969,2]
[373041249,1752845433823,-467.22,0.00016969,2]
[373041250,1752845433833,-460.0,0.00016969,2]
[373041251,1752845433843,-460.0,0.00016969,2]
[373041252,1752845433853,-460.0,0.00016969,2]
[373041253,1752845433865,-1122.06,0.00016969,2]
[373041254,1752845433875,-460.0,0.00016969,2]
[373041255,1752845433886,-460.0,0.00016969,2]
[373041256,1752845433896,-460.0,0.00016969,2]
[373041257,1752845433908,-162.38,0.00016969,2]
[373041258,1752845433918,-460.0,0.00016969,2]
[373041259,1752845433928,-460.0,0.00016969,2]
[373041260,1752845433938,-460.0,0.00016969,2]
[373041261,1752845433950,-460.0,0.00016969,2]
[373041262,1752845433961,-625.42,0.00016969,2]
[373041263,1752845433971,-460.0,0.00016969,2]
[373041264,1752845433982,-460.0,0.00016969,2]
[373041265,1752845433992,-460.0,0.00016969,2]
[373041266,1752845434003,-460.0,0.00016969,2]
[373041267,1752845434014,-460.0,0.00016969,2]
[373041268,1752845434028,-460.0,0.00016969,2]
[373041269,1752845434039,-152.29115071,0.00016969,2]
[373041270,1752845434049,-460.0,0.00016969,2]
[373041271,1752845434059,-460.0,0.00016969,2]
[373041272,1752845434069,-460.0,0.00016969,2]
[373041273,1752845434079,-460.0,0.00016969,2]
[373041274,1752845434089,-460.0,0.00016969,2]
[373041275,1752845434099,-460.0,0.00016969,2]
[373041276,1752845434110,-460.0,0.00016969,2]
[373041277,1752845434120,-460.0,0.00016969,2]
[373041278,1752845434131,-460.0,0.0001697,2]
[373041279,1752845434143,-460.0,0.0001697,2]
[373041280,1752845434153,-460.0,0.0001697,2]
[373041281,1752845434163,-460.0,0.0001697,2]
[373041282,1752845434173,-460.0,0.0001697,2]
[373041283,1752845434183,-460.0,0.0001697,2]
[373041284,1752845434195,-460.0,0.0001697,2]
[373041285,1752845434205,-464.52944913,0.0001697,2]
[373041286,1752845434216,-460.0,0.0001697,2]
[373041287,1752845434226,-460.0,0.0001697,2]
[373041288,1752845434236,-205.93312287,0.0001697,2]
[373041289,1752845434246,-460.0,0.0001697,2]
[373041290,1752845434255,-460.0,0.0001697,2]
[373041291,1752845434265,-434.02922962,0.0001697,2]
[373041292,1752845434276,-460.0,0.0001697,2]
[373041293,1752845434286,-503.12314946,0.0001697,2]
[373041294,1752845434296,-570.71,0.0001697,2]
[373041295,1752845434306,-460.0,0.0001697,2]
[373041296,1752845434317,-460.0,0.0001697,2]
[373041297,1752845434326,-460.0,0.0001697,2]
[373041298,1752845434336,-529.44,0.0001697,2]
[373041299,1752845434347,-460.0,0.0001697,2]
[373041300,1752845434357,-460.0,0.0001697,2]
[373041301,1752845434366,-910.0,0.00017,2]
[373041302,1752845434376,-460.0,0.00017067,2]
[373041303,1752845434386,-460.0,0.00017067,2]
[373041304,1752845434396,-580.0,0.00017067,2]
[373041305,1752845434407,-606.5,0.00017067,2]
[373041306,1752845434418,-2692.46,0.00017067,2]
[373041307,1752845434428,-681.38,0.00017067,2]
[373041308,1752845434438,-1477.31,0.00017067,2]
[373041309,1752845434451,-2198.72,0.00017067,2]
[373041310,1752845434461,-460.0,0.00017068,2]
[373041311,1752845434471,-460.0,0.00017068,2]
[373041312,1752845434481,-460.0,0.00017068,2]
[373041313,1752845434492,-460.0,0.00017068,2]
[373041314,1752845434502,-460.0,0.00017068,2]
[373041315,1752845434513,-460.0,0.00017068,2]
[373041316,1752845434523,-460.0,0.00017068,2]
[373041317,1752845434533,-460.0,0.00017068,2]
[373041318,1752845434543,-460.0,0.00017068,2]
[373041319,1752845434552,-238.34951207,0.00017068,2]
[373041320,1752845434562,-460.0,0.00017068,2]
[373041321,1752845434572,-460.0,0.00017068,2]
[373041322,1752845434582,-460.0,0.00017068,2]
[373041323,1752845434592,-460.0,0.00017068,2]
[373041324,1752845434601,-460.0,0.00017068,2]
[373041325,1752845434611,-1276.13,0.00017068,2]
[373041326,1752845434621,-460.0,0.00017068,2]
[373041327,1752845434635,-3019.79,0.00017068,2]
[373041328,1752845434644,-892.99,0.00017068,2]
[373041329,1752845434654,-460.0,0.00017069,2]
[373041330,1752845434665,-460.0,0.00017069,2]
[373041331,1752845434675,-460.0,0.00017069,2]
[373041332,1752845434685,-460.0,0.00017069,2]
[373041333,1752845434697,-5216.25223522,0.00017144,2]
[373041334,1752845434707,-460.0,0.0001722,2]
[373041335,1752845434716,-460.0,0.0001722,2]
[373041336,1752845434726,-460.0,0.0001722,2]
[373041337,1752845434736,-1075.48,0.0001722,2]
[373041338,1752845434745,-1000.0,0.00017221,2]
[373041339,1752845434755,-1000.0,0.00017221,2]
[373041340,1752845434764,-944.43106828,0.00017221,2]
[373041341,1752845434774,-1000.0,0.00017221,2]
[373041342,1752845434784,-1000.0,0.00017221,2]
[373041343,1752845434794,-1000.0,0.00017221,2]
[373041344,1752845434804,-500.0,0.00017221,2]
[373041345,1752845434813,-500.0,0.00017221,2]
[373041346,1752845434823,-2259.36,0.00017242,2]
[373041347,1752845434833,-2968.7,0.00017242,2]
[373041348,1752845434843,-460.0,0.00017242,2]
[373041349,1752845434853,-460.0,0.00017242,2]
[373041350,1752845434862,-1666.35,0.00017242,2]
[373041351,1752845434871,-460.0,0.00017242,2]
[373041352,1752845434880,-1468.03,0.00017242,2]
[373041353,1752845434891,-460.0,0.00017242,2]
[373041354,1752845434900,-1349.75,0.00017242,2]
[373041355,1752845434909,-460.0,0.00017242,2]
[373041356,1752845434919,-460.0,0.00017242,2]
[373041357,1752845434928,-460.0,0.00017242,2]
[373041358,1752845434938,-420.42839525,0.00017243,2]
[373041359,1752845434950,-460.0,0.00017243,2]
[373041360,1752845434959,-460.0,0.00017243,2]
[373041361,1752845434969,-460.0,0.00017243,2]
[373041362,1752845434979,-460.0,0.00017243,2]
[373041363,1752845434989,-460.0,0.00017243,2]
[373041364,1752845434998,-460.0,0.00017243,2]
[373041365,1752845435008,-460.0,0.00017243,2]
[373041366,1752845435018,-460.0,0.00017243,2]
[373041367,1752845435028,-460.0,0.00017243,2]
[373041368,1752845435037,-460.0,0.00017243,2]
[373041369,1752845435047,-467.22,0.00017243,2]
[373041370,1752845435057,-460.0,0.00017243,2]
[373041371,1752845435066,-460.0,0.00017243,2]
[373041372,1752845435076,-460.0,0.00017243,2]
[373041373,1752845435086,-1122.06,0.00017243,2]
[373041374,1752845435095,-460.0,0.00017243,2]
[373041375,1752845435105,-403.37,0.00017243,2]
[373041376,1752845435115,-460.0,0.00017243,2]
[373041377,1752845435124,-338.00568455,0.00017243,2]
[373041378,1752845435135,-460.0,0.00017243,2]
[373041379,1752845435147,-460.0,0.00017243,2]
[373041380,1752845435156,-460.0,0.00017243,2]
[373041381,1752845435166,-625.42,0.00017243,2]
[373041382,1752845435176,-460.0,0.00017243,2]
[373041383,1752845435186,-460.0,0.00017243,2]
[373041384,1752845435197,-460.0,0.00017243,2]
[373041385,1752845435207,-291.65185192,0.00017243,2]
[373041386,1752845435217,-460.0,0.00017243,2]
[373041387,1752845435226,-173.99,0.00017243,2]
[373041388,1752845435236,-460.0,0.00017243,2]
[373041389,1752845435245,-460.0,0.00017243,2]
[373041390,1752845435255,-460.0,0.00017243,2]
[373041391,1752845435265,-460.0,0.00017243,2]
[373041392,1752845435274,-460.0,0.00017244,2]
[373041393,1752845435284,-460.0,0.00017244,2]
[373041394,1752845435294,-460.0,0.00017244,2]
[373041395,1752845435304,-460.0,0.00017244,2]
[373041396,1752845435313,-526.69285044,0.00017244,2]
[373041397,1752845435585,-44.01714956,0.00017244,2]
[373041398,1752845435594,-460.0,0.00017244,2]
[373041399,1752845435604,-460.0,0.00017244,2]
[373041400,1752845435614,-460.0,0.00017244,2]
[373041401,1752845435623,-188.85628207,0.00017244,2]
[373041402,1752845435635,-460.0,0.00017244,2]
[373041403,1752845435644,-502.86609001,0.0001727,2]
[373041404,1752845435653,-242.54494801,0.000173,2]
[373041405,1752845435664,-257.45505199,0.000173,2]
[373041406,1752845435674,-1000.0,0.00017321,2]
[373041407,1752845435684,-168.46,0.00017332,3]
[373041408,1752845435696,-505.42,0.00017332,3]
[373041409,1752845435707,-460.0,0.00017341,2]
[373041410,1752845435716,-460.0,0.00017341,2]
[373041411,1752845435727,-606.5,0.00017341,2]
[373041412,1752845435737,-2692.46,0.00017341,2]
[373041413,1752845435747,-193.13192836,0.00017341,2]
[373041414,1752845435759,-488.24807164,0.00017341,2]
[373041415,1752845435768,-629.32955211,0.00017341,2]
[373041432,1752845439012,-847.98044789,0.00017341,2]
[373041433,1752845439022,-2198.72,0.00017341,2]
[373041435,1752845439031,-460.0,0.00017342,2]
[373041437,1752845439046,-538.32449597,0.00017342,2]
[373041438,1752845439066,-460.0,0.00017342,2]
[373041439,1752845439075,-460.0,0.00017342,2]
[373041440,1752845439086,-460.0,0.00017342,2]
[373041441,1752845439096,-460.0,0.00017342,2]
[373041442,1752845439105,-1276.13,0.00017342,2]
[373041443,1752845439115,-3019.79,0.00017342,2]
[373041444,1752845439124,-892.99,0.00017342,2]
[373041445,1752845439134,-460.0,0.00017343,2]
[373041446,1752845439143,-501.56354892,0.00017416,2]
[373041447,1752845439152,-500.0,0.00017416,2]
[373041448,1752845439161,-500.0,0.00017416,2]
[373041449,1752845439170,-500.0,0.00017416,2]
[373041450,1752845439179,-542.55430628,0.00017457,2]
[373041451,1752845439188,-6147.01713076,0.0001746,2]
[373041452,1752845439201,-460.0,0.00017494,2]
[373041453,1752845439210,-278.17083341,0.00017494,2]
[373041454,1752845439219,-535.89,0.00017494,2]
[373041455,1752845439228,-1075.48,0.00017494,2]
[373041456,1752845439237,-2259.36,0.00017516,2]
[373041457,1752845439246,-2968.7,0.00017516,2]
[373041458,1752845439254,-460.0,0.00017516,2]
[373041459,1752845439264,-592.46580573,0.00017516,2]
[373041460,1752845439273,-1666.35,0.00017516,2]
[373041461,1752845439282,-460.0,0.00017516,2]
[373041462,1752845439291,-1468.03,0.00017516,2]
[373041463,1752845439306,-460.0,0.00017516,2]
[373041464,1752845439315,-1349.75,0.00017516,2]
[373041466,1752845439325,-460.0,0.00017516,2]
[373041467,1752845439334,-460.0,0.00017516,2]
[373041468,1752845439343,-460.0,0.00017516,2]
[373041469,1752845439352,-460.0,0.00017517,2]
[373041470,1752845439362,-514.77,0.00017517,2]
[373041471,1752845439371,-326.29001919,0.00017517,2]
[373041472,1752845439380,-74.59068144,0.00017517,2]
[373041473,1752845439393,-423.20737741,0.00017517,2]
[373041474,1752845439402,-460.0,0.00017517,2]
[373041475,1752845439412,-460.0,0.00017517,2]
[373041476,1752845439421,-460.0,0.00017517,2]
[373041477,1752845439431,-460.0,0.00017517,2]
[373041478,1752845439440,-460.0,0.00017517,2]
[373041479,1752845439453,-467.22,0.00017517,2]
[373041480,1752845439463,-460.0,0.00017517,2]
[373041481,1752845439472,-460.0,0.00017517,2]
[373041482,1752845439482,-460.0,0.00017517,2]
[373041483,1752845439491,-1122.06,0.00017517,2]
[373041484,1752845439500,-460.0,0.00017517,2]
[373041485,1752845439510,-460.0,0.00017517,2]
[373041486,1752845439519,-460.0,0.00017517,2]
[373041487,1752845439528,-261.3083951,0.00017517,2]
[373041488,1752845439538,-625.42,0.00017517,2]
[373041489,1752845439547,-158.09,0.00017517,2]
[373041490,1752845439556,-460.0,0.00017517,2]
[373041491,1752845439565,-460.0,0.00017517,2]
[373041492,1752845439574,-460.0,0.00017517,2]
[373041493,1752845439584,-460.0,0.00017517,2]
[373041494,1752845439594,-571.36,0.00017517,2]
[373041495,1752845439604,-460.0,0.00017517,2]
[373041496,1752845439613,-460.0,0.00017518,2]
[373041497,1752845439623,-570.71,0.00017518,2]
[373041498,1752845439636,-460.0,0.00017518,2]
[373041499,1752845439646,-460.0,0.00017518,2]
[373041500,1752845439656,-460.0,0.00017518,2]
[373041501,1752845439667,-460.0,0.00017615,2]
[373041502,1752845439677,-468.21380499,0.00017615,2]
[373041503,1752845439686,-606.5,0.00017615,2]
[373041504,1752845439700,-2692.46,0.00017615,2]
[373041505,1752845439710,-681.38,0.00017615,2]
[373041506,1752845439720,-1477.31,0.00017615,2]
[373041507,1752845439730,-2198.72,0.00017615,2]
[373041508,1752845439740,-460.0,0.00017616,2]
[373041509,1752845439750,-460.0,0.00017616,2]
[373041510,1752845439760,-460.0,0.00017616,2]
[373041511,1752845439770,-460.0,0.00017616,2]
[373041512,1752845439781,-460.0,0.00017616,2]
[373041513,1752845439791,-1276.13,0.00017616,2]
[373041514,1752845439801,-3019.79,0.00017616,2]
[373041515,1752845439812,-892.99,0.00017616,2]
[373041516,1752845439822,-6147.01713076,0.00017743,2]
[373041517,1752845439832,-460.0,0.00017768,2]
[373041518,1752845439842,-1075.48,0.00017768,2]
[373041519,1752845439852,-1500.0,0.00017768,2]
[373041520,1752845439862,-1500.0,0.00017768,2]
[373041521,1752845439871,-523.28629004,0.00017768,2]
[373041522,1752845439881,-1500.0,0.00017768,2]
[373041523,1752845439891,-2259.36,0.0001779,2]
[373041524,1752845439901,-2968.7,0.0001779,2]
[373041525,1752845439911,-460.0,0.0001779,2]
[373041526,1752845439920,-1666.35,0.0001779,2]
[373041527,1752845439930,-1468.03,0.0001779,2]
[373041528,1752845439940,-540.36,0.0001779,2]
[373041529,1752845439952,-1349.75,0.0001779,2]
[373041530,1752845439962,-460.0,0.0001779,2]
[373041531,1752845439972,-460.0,0.0001779,2]
[373041532,1752845439982,-460.0,0.0001779,2]
[373041533,1752845439991,-460.0,0.00017791,2]
[373041534,1752845440001,-460.0,0.00017791,2]
[373041535,1752845440011,-460.0,0.00017791,2]
[373041536,1752845440020,-460.0,0.00017791,2]
[373041537,1752845440030,-467.22,0.00017791,2]
[373041538,1752845440040,-460.0,0.00017791,2]
[373041539,1752845440050,-460.0,0.00017791,2]
[373041540,1752845440060,-243.96962305,0.00017791,2]
[373041541,1752845440071,-1122.06,0.00017791,2]
[373041542,1752845440081,-460.0,0.00017791,2]
[373041543,1752845440091,-460.0,0.00017791,2]
[373041544,1752845440100,-460.0,0.00017791,2]
[373041545,1752845440110,-625.42,0.00017791,2]
[373041546,1752845440120,-460.0,0.00017791,2]
[373041547,1752845440130,-460.0,0.00017791,2]
[373041548,1752845440140,-460.0,0.00017791,2]
[373041549,1752845440150,-460.0,0.00017791,2]
[373041550,1752845440263,-460.0,0.00017792,2]
[373041551,1752845440276,-570.71,0.00017792,2]
[373041552,1752845440286,-273.98,0.00017792,2]
[373041553,1752845440296,-460.0,0.00017792,2]
[373041555,1752845440305,-460.0,0.00017792,2]
[373041557,1752845440314,-919.00766966,0.00017848,2]
[373041558,1752845440324,-558.02646603,0.00017849,2]
[373041559,1752845440333,-386.07177506,0.00017868,2]
[373041560,1752845440342,-225.99849507,0.00017872,2]
[373041561,1752845440356,-6147.01713076,0.0001788,2]
[373041562,1752845440365,-460.0,0.00017889,2]
[373041563,1752845440375,-606.5,0.00017889,2]
[373041564,1752845440384,-110.89103124,0.00017889,2]
[373041565,1752845440396,-1014.04516778,0.00017889,2]
[373041566,1752845440407,-1567.52380098,0.00017889,2]
[373041567,1752845440416,-390.86874016,0.00017889,2]
[373041568,1752845440427,-290.51125984,0.00017889,2]
[373041569,1752845440436,-1477.31,0.00017889,2]
[373041570,1752845440445,-2198.72,0.00017889,2]
[373041571,1752845440456,-460.0,0.0001789,2]
[373041572,1752845440465,-604.7345721,0.0001789,2]
[373041573,1752845440474,-460.0,0.0001789,2]
[373041574,1752845440482,-460.0,0.0001789,2]
[373041575,1752845440493,-460.0,0.0001789,2]
[373041576,1752845440502,-1276.13,0.0001789,2]
[373041577,1752845440511,-3019.79,0.0001789,2]
[373041578,1752845440521,-892.99,0.0001789,2]
[373041579,1752845440530,-497.86177951,0.00017964,2]
[373041580,1752845440540,-1000.0,0.00017964,2]
[373041581,1752845440550,-181.0,0.00017989,2]
[373041582,1752845440560,-32582.59395977,0.00018,2]
[373041583,1752845440569,-226.49,0.00018042,2]
[373041584,1752845440579,-1075.48,0.00018042,2]
[373041585,1752845440589,-2259.36,0.00018064,2]
[373041586,1752845440598,-2968.7,0.00018064,2]
[373041587,1752845440607,-460.0,0.00018064,2]
[373041588,1752845440616,-1666.35,0.00018064,2]
[373041589,1752845440626,-1468.03,0.00018064,2]
[373041590,1752845440640,-1349.75,0.00018064,2]
[373041591,1752845440649,-460.0,0.00018064,2]
[373041592,1752845440658,-460.0,0.00018064,2]
[373041593,1752845440667,-460.0,0.00018064,2]
[373041594,1752845440676,-460.0,0.00018065,2]
[373041595,1752845440686,-460.0,0.00018065,2]
[373041597,1752845440695,-460.0,0.00018065,2]
[373041599,1752845440711,-460.0,0.00018065,2]
[373041600,1752845440721,-467.22,0.00018065,2]
[373041601,1752845440730,-421.18,0.00018065,2]
[373041602,1752845440740,-460.0,0.00018065,2]
[373041603,1752845440750,-1122.06,0.00018065,2]
[373041605,1752845440760,-460.0,0.00018065,2]
[373041607,1752845440770,-460.0,0.00018065,2]
[373041608,1752845440779,-625.42,0.00018065,2]
[373041609,1752845440789,-460.0,0.00018065,2]
[373041610,1752845440800,-460.0,0.00018065,2]
[373041611,1752845440810,-460.0,0.00018065,2]
[373041612,1752845440821,-460.0,0.00018065,2]
[373041613,1752845440831,-460.0,0.00018066,2]
[373041614,1752845440841,-570.71,0.00018066,2]
[373041615,1752845440851,-460.0,0.00018066,2]
[373041616,1752845440860,-460.0,0.00018066,2]
[373041617,1752845440870,-606.5,0.00018163,2]
[373041619,1752845440880,-2692.46,0.00018163,2]
[373041620,1752845440890,-681.38,0.00018163,2]
[373041621,1752845440899,-1477.31,0.00018163,2]
[373041622,1752845440909,-2198.72,0.00018163,2]
[373041623,1752845440919,-460.0,0.00018164,2]
[373041624,1752845440929,-460.0,0.00018164,2]
[373041625,1752845440939,-572.74,0.00018164,2]
[373041626,1752845440951,-460.0,0.00018164,2]
[373041627,1752845440961,-1276.13,0.00018164,2]
[373041628,1752845440970,-3019.79,0.00018164,2]
[373041629,1752845440980,-892.99,0.00018164,2]
[373041630,1752845440991,-6147.01713076,0.00018182,2]
[373041631,1752845441001,-2650.76181571,0.00018201,2]
[373041632,1752845441011,-420.0,0.0001824,2]
[373041633,1752845441020,-160.0,0.00018242,2]
[373041634,1752845441030,-1075.48,0.00018316,2]
[373041635,1752845441039,-2000.0,0.00018316,2]
[373041636,1752845441049,-1007.5277841,0.00018316,2]
[373041637,1752845441059,-1680.0,0.0001833,2]
[373041638,1752845441068,-2259.36,0.00018338,2]
[373041639,1752845441078,-2968.7,0.00018338,2]
[373041640,1752845441087,-460.0,0.00018338,2]
[373041641,1752845441097,-1666.35,0.00018338,2]
[373041642,1752845441107,-1468.03,0.00018338,2]
[373041643,1752845441115,-1349.75,0.00018338,2]
[373041644,1752845441125,-460.0,0.00018338,2]